{"text_format":"1","workbook":"xlsx","n_sheets":3,"sheets":["SR650 V4 with 1xCPU","SR650 V4 with 2xCPUs","with Compute Complex NeptCore"],"not_rendered":{"charts":0,"images":0,"macros":0,"external_links":1,"defined_names":3,"comments":4,"pivot_tables":0},"unopened":[],"bounds":{"document_bytes":16777216,"sheet_cells":100000,"rows_first":2000,"rows_last":500,"rows_between":2000,"halvings":0,"cell_chars":16384,"cell_head_chars":4096},"cells_cut":0,"cells_raw":0,"read":"whole","date_system":"1900"}

{"sheet":"SR650 V4 with 1xCPU","index":0,"n_rows":48,"n_cols":19,"rows_kept":48,"cut":false,"hidden":false,"merged":[[42,12,42,13],[40,18,41,18],[40,12,40,16],[46,12,46,13],[47,12,47,13],[45,12,45,13],[43,12,43,13],[44,12,44,13],[40,0,41,0],[7,12,7,15],[6,12,6,13],[1,12,1,16],[3,12,3,13],[4,12,4,13],[5,12,5,13],[40,1,41,1],[40,2,41,2],[39,1,39,2],[34,14,34,15],[32,14,32,15],[31,14,31,15],[25,12,25,13],[11,8,11,11],[17,12,17,13],[18,12,18,13],[16,12,16,13],[14,12,14,13],[35,12,35,13],[30,12,30,13],[1,1,1,4],[1,5,1,7],[1,8,1,11],[11,5,11,7],[11,1,11,4],[0,0,0,16],[10,0,10,16],[38,0,38,17],[40,17,41,17],[15,12,15,13],[11,12,11,16],[13,12,13,13],[23,12,23,13],[22,12,22,13],[21,12,21,13],[20,12,20,13],[19,12,19,13],[28,12,28,13],[27,12,27,13],[26,12,26,13],[24,12,24,13]]}
["The following lists the PCIe slot installation rules for servers with one processor and 12 x 3.5\" front drive bays. For detailed configurations, see https://dcsc.lenovo.com."]
["SR650 V4 12 x 3.5\"","Hot Swap - Front\n(A Zone)",null,null,null,"Simple Swap - Mid\n(B Zone)",null,null,"Hot Swap - Rear\n(C Zone)",null,null,null,"1P"]
["Config","3.5\" SAS/SATA","3.5\" NVMe","3.5\" AnyBay","2.5\" NVMe","3.5\" SAS/SATA","2.5\" SAS/SATA","2.5\" NVMe","3.5\" SAS/SATA","2.5\" SAS/SATA","2.5\" NVMe","2.5\" AnyBay","Slot1","Slot2","Slot3","Slot4","Slot5",null,"CPU Qty's"]
[117,8,null,null,null,null,null,null,null,null,null,null,"V",null,"V\n(Non- x8 cable riser for x16 OCP1)","V","V",null,"1P/2P"]
[35,12,null,null,null,null,null,null,null,null,null,null,"V",null,"V\n(Non- x8 cable riser for x16 OCP1)","V","V",null,"1P/2P"]
[36,8,null,4,null,null,null,null,null,null,null,null,"V",null,"V\n(Non- x8 cable riser for x16 OCP1)","V","V",null,"1P/2P"]
[37,8,4,null,null,null,null,null,null,null,null,null,"V",null,"V\n(Non- x8 cable riser for x16 OCP1)","V","V",null,"1P/2P"]
[38,12,null,null,null,null,null,null,4,null,null,null,"Rear BP",null,null,null,"V",null,"1P/2P"]
[]
[]
["The following lists the PCIe slot installation rules for servers with one processor and 24 x 2.5\" front drive bays. For detailed configurations, see https://dcsc.lenovo.com."]
["SR650 V4 24 x 2.5\"","Hot Swap - Front\n(A Zone)",null,null,null,"Simple Swap - Mid\n(B Zone)",null,null,"Hot Swap - Rear\n(C Zone)",null,null,null,"1P"]
["Config","2.5\" SAS/SATA","2.5\" NVMe","2.5\" AnyBay","U.3","3.5\" SAS/SATA","2.5\" SAS/SATA","2.5\" NVMe","3.5\" SAS/SATA","2.5\" SAS/SATA","2.5\" NVMe","2.5\" AnyBay","Slot1","Slot2","Slot3","Slot4","Slot5",null,"CPU Qty's"]
[1,8,null,null,null,null,null,null,null,null,null,null,"V",null,"V\n(Non- x8 cable riser for x16 OCP1)","V","V",null,"1P/2P"]
[2,null,8,null,null,null,null,null,null,null,null,null,"N/A",null,"V\n(Non- x8 cable riser for x16 OCP1)","V","V",null,"1P/2P"]
[3,null,null,8,null,null,null,null,null,null,null,null,"N/A",null,"V\n(Non- x8 cable riser for x16 OCP1)\n(Non- x8 cable riser&x8 OCP1 for CFF)","V","V",null,"1P/2P"]
[5,null,null,null,8,null,null,null,null,null,null,null,"V",null,"V\n(Non- x8 cable riser for x16 OCP1)","V","V",null,"1P/2P"]
[6,16,null,null,null,null,null,null,null,null,null,null,"V",null,"V\n(Non- x8 cable riser for x16 OCP1)","V","V",null,"1P/2P"]
[7,null,16,null,null,null,null,null,null,null,null,null,"N/A",null,"V\n(Only x8 cable riser)\n(Non- x8 cable riser for x16 OCP1)","N/A","N/A",null,"1P/2P"]
[11,null,null,null,16,null,null,null,null,null,null,null,"V",null,"V\n(Non- x8 cable riser for x16 OCP1)","V","V",null,"1P/2P"]
[8,null,8,8,null,null,null,null,null,null,null,null,"N/A",null,"V\n(Only x8 cable riser)\n(Non- x8 cable riser for x16 OCP1)\n(Non- x8 cable riser&x8 OCP1 for CFF)","N/A","N/A",null,"1P/2P"]
[9,8,null,8,null,null,null,null,null,null,null,null,"N/A",null,"V\n(Non- x8 cable riser for x16 OCP1)\n(Non- x8 cable riser&x8 OCP1 for CFF)","V","V",null,"1P/2P"]
[10,8,8,null,null,null,null,null,null,null,null,null,"N/A",null,"V\n(Non- x8 cable riser for x16 OCP1)\n(Non- x8 cable riser&x8 OCP1 for CFF)","V","V",null,"1P/2P"]
[12,24,null,null,null,null,null,null,null,null,null,null,"V",null,"V\n(Non- x8 cable riser for x16 OCP1)","V","V",null,"1P/2P"]
[14,16,null,8,null,null,null,null,null,null,null,null,"N/A",null,"V\n(Non- x8 cable riser for x16 OCP1)\n(Non- x8 cable riser&x8 OCP1 for CFF)","V","V",null,"1P/2P"]
[15,16,8,null,null,null,null,null,null,null,null,null,"N/A",null,"V\n(Non- x8 cable riser for x16 OCP1)\n(Non- x8 cable riser&x8 OCP1 for CFF)","V","V",null,"1P/2P"]
[16,null,null,null,24,null,null,null,null,null,null,null,"V",null,"V\n(Non- x8 cable riser for x16 OCP1)\n(Non- x8 cable riser&x8 OCP1 for CFF)","V","V",null,"1P/2P"]
[17,24,null,null,null,null,null,null,null,4,null,null,"V",null,"V\n(Non- x8 cable riser for x16 OCP1)\n(Non- x8 cable riser&x8 OCP1 for CFF)","V","V",null,"1P/2P"]
[19,16,null,8,null,null,null,null,null,4,null,null,"N/A",null,"V\n(Non- x8 cable riser for x16 OCP1)\n(Non- x8 cable riser&x8 OCP1 for CFF)","V","V",null,"1P/2P"]
[20,24,null,null,null,null,8,null,null,null,null,null,"V","N/A\n(Power21 for BP11)","V\n(Non- x8 cable riser for x16 OCP1)\n(Non- x8 cable riser&x8 OCP1 for CFF)","V","V",null,"1P/2P"]
[21,16,null,8,null,null,8,null,null,null,null,null,"N/A",null,"V\n(Non- x8 cable riser for x16 OCP1)\n(Non- x8 cable riser&x8 OCP1 for CFF)","V","V",null,"1P/2P"]
[22,16,null,8,null,null,null,null,null,8,null,null,"V\n(x8 cable riser)","V\n(x16 cable riser)","Rear BP",null,"V",null,"1P/2P"]
[23,24,null,null,null,null,null,null,null,8,null,null,"V\n(x8 cable riser)","V\n(x16 cable riser)","Rear BP",null,"V",null,"1P/2P"]
[26,24,null,null,null,null,8,null,null,4,null,null,"V","N/A\n(Power for BP11)","V\n(Non- x8 cable riser for x16 OCP1)\n(Non- x8 cable riser&x8 OCP1 for CFF)","V","V",null,"1P/2P"]
[27,24,null,null,null,null,8,null,null,8,null,null,"V\n(x8 cable riser)","V\n(x16 cable riser)","Rear BP",null,"V",null,"1P/2P"]
[121,8,null,null,null,null,null,null,null,null,null,null,"N/A",null,"V\n(Only x8 cable riser)\n(Non- x8 cable riser for x16 OCP1)\n(Non- x8 cable riser&x8 OCP1 for CFF)","N/A","N/A",null,"1P/2P"]
[]
[]
["The following lists the PCIe slot installation rules for servers with one processor and E3.S front bays. For detailed configuration, see https://dcsc.lenovo.com."]
["SR650 V4 E3.S","Front\n(A Zone)"]
["Config","E3.S 1T drive","E3.S 2T CMM",null,null,null,null,null,null,null,null,null,"1P",null,null,null,null,"BP Qty","CPU Qty's"]
[null,null,null,null,null,null,null,null,null,null,null,null,"Slot1\n4XH7B03718 -x8,75W","Slot2\n4XH7B03718 -x8,75W","Slot3\n4X97B02316 -x8,75W\n4X97B02319 - x16, 450W","Slot4\n4X97B02318 - x16, 75W\n4X97B02317 - x16,450W","Slot5\n4XH7B02315 - x16,160W\n(Not exit w/4X97B02319)",null,{"$error":"#N/A"}]
[59,8,null,null,null,null,null,null,null,null,null,null,"N/A",null,"V","V","V",{"$f":"B43/4+C43/2","v":2},"1P/2P"]
[60,16,null,null,null,null,null,null,null,null,null,null,"N/A",null,"V\n(Only x8 cable riser)","N/A","N/A",4,"1P/2P"]
[102,null,2,null,null,null,null,null,null,null,null,null,"V",null,"V","V","V",1,"1P"]
[63,null,4,null,null,null,null,null,null,null,null,null,"N/A",null,"V","V","V",2,"1P/2P"]
[67,8,4,null,null,null,null,null,null,null,null,null,"N/A",null,"V\n(Only x8 cable riser)","N/A","N/A",4,"1P/2P"]
[119,null,6,null,null,null,null,null,null,null,null,null,"N/A",null,"V","N/A","V",3,"1P"]

{"sheet":"SR650 V4 with 2xCPUs","index":1,"n_rows":64,"n_cols":24,"rows_kept":64,"cut":false,"hidden":false,"merged":[[58,12,58,13],[58,20,58,21],[49,1,50,1],[49,2,50,2],[63,20,63,21],[63,12,63,13],[62,20,62,21],[62,12,62,13],[61,20,61,21],[61,12,61,13],[60,20,60,21],[60,12,60,13],[59,20,59,21],[59,12,59,13],[56,12,56,13],[55,20,55,21],[55,12,55,13],[56,20,56,21],[54,20,54,21],[54,12,54,13],[53,20,53,21],[53,12,53,13],[52,20,52,21],[52,12,52,13],[49,0,50,0],[51,20,51,21],[51,12,51,13],[49,12,49,21],[49,23,50,23],[57,20,57,21],[57,12,57,13],[41,20,41,21],[41,12,41,13],[41,17,41,18],[42,20,42,21],[42,17,42,18],[44,12,44,13],[44,20,44,21],[43,20,43,21],[43,14,43,15],[43,17,43,18],[37,17,37,18],[37,20,37,21],[37,14,37,15],[38,17,38,18],[38,20,38,21],[38,14,38,15],[40,17,40,18],[40,20,40,21],[40,12,40,13],[31,20,31,21],[31,12,31,13],[32,17,32,18],[32,20,32,21],[32,12,32,13],[33,17,33,18],[33,20,33,21],[33,12,33,13],[34,17,34,18],[34,20,34,21],[34,12,34,13],[27,12,27,13],[28,20,28,21],[28,12,28,13],[29,12,29,13],[30,12,30,13],[23,12,23,13],[24,20,24,21],[24,12,24,13],[25,12,25,13],[1,1,1,4],[1,5,1,7],[1,8,1,11],[1,12,1,21],[39,12,39,13],[39,17,39,18],[39,20,39,21],[17,12,17,13],[17,20,17,21],[18,12,18,13],[18,20,18,21],[11,20,11,21],[15,1,15,4],[15,5,15,7],[15,8,15,11],[15,12,15,21],[11,12,11,13],[11,17,11,18],[9,17,9,18],[9,20,9,21],[9,12,9,13],[8,17,8,18],[26,12,26,13],[27,20,27,21],[0,0,0,21],[14,0,14,21],[48,1,48,2],[47,0,47,22],[49,22,50,22],[7,17,7,18],[7,20,7,21],[7,12,7,15],[6,20,6,21],[6,12,6,13],[5,20,5,21],[5,12,5,13],[3,12,3,13],[3,20,3,21],[4,12,4,13],[4,20,4,21],[8,20,8,21],[8,12,8,13],[20,12,20,13],[20,20,20,21],[19,12,19,13],[21,12,21,13],[22,20,22,21],[22,12,22,13]]}
["The following lists the PCIe slot installation rules for servers with two processors and 12 x 3.5\" front drive bays. For detailed configurations, see https://dcsc.lenovo.com."]
["SR650 V4 12 x 3.5\"","Hot Swap - Front\n(A Zone)",null,null,null,"Simple Swap - Mid\n(B Zone)",null,null,"Hot Swap - Rear\n(C Zone)",null,null,null,"2P"]
["Config","3.5\" SAS/SATA","3.5\" NVMe","3.5\" AnyBay","2.5\" NVMe","3.5\" SAS/SATA","2.5\" SAS/SATA","2.5\" NVMe","3.5\" SAS/SATA","2.5\" SAS/SATA","2.5\" NVMe","2.5\" AnyBay","Slot1","Slot2","Slot3","Slot4","Slot5","Slot6","Slot7","Slot8","Slot9","Slot10",null,"CPU Qty's"]
[117,8,null,null,null,null,null,null,null,null,null,null,"V",null,"V\n(Non- x8 cable riser for x16 OCP1)","V","V","V","V","V","V",null,null,"1P/2P"]
[35,12,null,null,null,null,null,null,null,null,null,null,"V",null,"V\n(Non- x8 cable riser for x16 OCP1)","V","V","V","V","V","V",null,null,"1P/2P"]
[36,8,null,4,null,null,null,null,null,null,null,null,"V",null,"V\n(Non- x8 cable riser for x16 OCP1)","V","V","V","V","V","V",null,null,"1P/2P"]
[37,8,4,null,null,null,null,null,null,null,null,null,"V",null,"V\n(Non- x8 cable riser for x16 OCP1)","V","V","V","V","V","V",null,null,"1P/2P"]
[38,12,null,null,null,null,null,null,4,null,null,null,"Rear BP",null,null,null,"V","Rear BP",null,"V","Rear BP",null,null,"1P/2P"]
[41,12,null,null,null,null,null,null,null,null,null,4,"V",null,"V\n(Non- x8 cable riser for x16 OCP1)","V","V","Rear BP",null,"V","Rear BP",null,null,"2P"]
[118,12,null,null,null,null,null,null,null,null,4,null,"V",null,"V\n(Non- x8 cable riser for x16 OCP1)","V","V","Rear BP",null,"V","Rear BP",null,null,"2P"]
[42,12,null,null,null,null,null,8,null,null,null,null,"V","N/A\n(Power21 for BP11)","V\n(Non- x8 cable riser for x16 OCP1)","V","N/A\n(PCIe11 for BP11)","V","V","V","V","N/A\n(Power23 for BP10)",null,"2P"]
[122,8,null,4,null,null,null,null,null,null,4,null,"V",null,"V\n(Non- x8 cable riser for x16 OCP1)","V","V","Rear BP",null,"V","Rear BP",null,null,"2P"]
[]
[]
["The following lists the PCIe slot installation rules for servers with two processors and 24 x 2.5\" front drive bays. For detailed configurations, see https://dcsc.lenovo.com."]
["SR650 V4 24 x 2.5\"","Hot Swap - Front\n(A Zone)",null,null,null,"Simple Swap - Mid\n(B Zone)",null,null,"Hot Swap - Rear\n(C Zone)",null,null,null,"2P"]
["Config","2.5\" SAS/SATA","2.5\" NVMe","2.5\" AnyBay","U.3","3.5\" SAS/SATA","2.5\" SAS/SATA","2.5\" NVMe","3.5\" SAS/SATA","2.5\" SAS/SATA","2.5\" NVMe","2.5\" AnyBay","Slot1","Slot2","Slot3","Slot4","Slot5","Slot6","Slot7","Slot8","Slot9","Slot10",null,"CPU Qty's"]
[1,8,null,null,null,null,null,null,null,null,null,null,"V",null,"V\n(Non- x8 cable riser for x16 OCP1)","V","V","V","V","V","V",null,null,"1P/2P"]
[2,null,8,null,null,null,null,null,null,null,null,null,"V",null,"V\n(Non- x8 cable riser for x16 OCP1)","V","V","V","V","V","V",null,null,"1P/2P"]
[3,null,null,8,null,null,null,null,null,null,null,null,"V",null,"V\n(Non- x8 cable riser for x16 OCP1)","V","V","V","V","V","V","V\n(N/A for CFF)",null,"1P/2P"]
[5,null,null,null,8,null,null,null,null,null,null,null,"V",null,"V\n(Non- x8 cable riser for x16 OCP1)","V","V","V","V","V","V",null,null,"1P/2P"]
[6,16,null,null,null,null,null,null,null,null,null,null,"V",null,"V\n(Non- x8 cable riser for x16 OCP1)","V","V","V","V","V","V","V",null,"1P/2P"]
[7,null,16,null,null,null,null,null,null,null,null,null,"N/A",null,"V\n(Non- x8 cable riser for x16 OCP1)","V","V","V","V","V","N/A",null,null,"1P/2P"]
[11,null,null,null,16,null,null,null,null,null,null,null,"V",null,"V\n(Non- x8 cable riser for x16 OCP1)","V","V","V","V","V","V","V",null,"1P/2P"]
[8,null,8,8,null,null,null,null,null,null,null,null,"N/A",null,"V\n(Non- x8 cable riser for x16 OCP1)","V","V","V\n(Non- x8 cable riser for CFF)","V","V","N/A",null,null,"1P/2P"]
[9,8,null,8,null,null,null,null,null,null,null,null,"V",null,"V\n(Non- x8 cable riser for x16 OCP1)","V","V","V","V","V","V","V\n(N/A for CFF)",null,"1P/2P"]
[10,8,8,null,null,null,null,null,null,null,null,null,"V",null,"V\n(Non- x8 cable riser for x16 OCP1)","V","V","V","V","V","V","V\n(N/A for CFF)",null,"1P/2P"]
[12,24,null,null,null,null,null,null,null,null,null,null,"V",null,"V\n(Non- x8 cable riser for x16 OCP1)","V","V","V","V","V","V",null,null,"1P/2P"]
[13,null,24,null,null,null,null,null,null,null,null,null,"N/A",null,"V-1 (x8 cable riser)\nV-2 (x16 cable riser)","V-2","V-1","V-1 (x8 cable riser)\nV-2 (x16 cable riser)","V-2","V-1","N/A",null,null,"2P"]
[14,16,null,8,null,null,null,null,null,null,null,null,"V",null,"V\n(Non- x8 cable riser for x16 OCP1)","V","V","V","V","V","V","V\n(N/A for CFF)",null,"1P/2P"]
[15,16,8,null,null,null,null,null,null,null,null,null,"V",null,"V\n(Non- x8 cable riser for x16 OCP1)","V","V","V","V","V","V","V\n(N/A for CFF)",null,"1P/2P"]
[16,null,null,null,24,null,null,null,null,null,null,null,"V",null,"V\n(Non- x8 cable riser for x16 OCP1)","V","V","V","V","V","V",null,null,"1P/2P"]
[17,24,null,null,null,null,null,null,null,4,null,null,"V",null,"V\n(Non- x8 cable riser for x16 OCP1)","V","V","Rear BP",null,"V","Rear BP",null,null,"1P/2P"]
[18,24,null,null,null,null,null,null,null,null,null,4,"V",null,"V\n(Non- x8 cable riser for x16 OCP1)","V","V","Rear BP",null,"V","Rear BP",null,null,"2P"]
[19,16,null,8,null,null,null,null,null,4,null,null,"V",null,"V\n(Non- x8 cable riser for x16 OCP1)","V","V","Rear BP",null,"V","Rear BP",null,null,"1P/2P"]
[20,24,null,null,null,null,8,null,null,null,null,null,"V","N/A\n(Power21 for BP11)","V\n(Non- x8 cable riser for x16 OCP1)","V","V","V","V","V","V","N/A\n(Power23 for BP10)",null,"1P/2P"]
[21,16,null,8,null,null,8,null,null,null,null,null,"V","N/A\n(Power21 for BP11)","V\n(Non- x8 cable riser for x16 OCP1)","V","V","V","V","V","V","N/A\n(Power23 for BP10)",null,"1P/2P"]
[22,16,null,8,null,null,null,null,null,8,null,null,"V\n(Non- x8 cable riser for x16 OCP1)","V","Rear BP",null,"V","Rear BP",null,"V","Rear BP",null,null,"1P/2P"]
[23,24,null,null,null,null,null,null,null,8,null,null,"V\n(Non- x8 cable riser for x16 OCP1)","V","Rear BP",null,"V","Rear BP",null,"V","Rear BP",null,null,"1P/2P"]
[101,null,24,null,null,null,null,null,null,null,4,null,"N/A",null,"V\n(Only x8 cable riser)\n(Non- x8 cable riser for x16 OCP1)","N/A","V","Rear BP",null,"N/A","Rear BP",null,null,"2P"]
[24,null,24,null,null,null,null,8,null,null,null,null,"N/A",null,"V\n(Only x8 cable riser)\n(Non- x8 cable riser for x16 OCP1)","N/A","N/A","Rear BP",null,"V","Rear BP",null,null,"2P"]
[25,null,24,null,null,null,null,8,null,null,4,null,"N/A",null,"V\n(Only x8 cable riser)\n(Non- x8 cable riser for x16 OCP1)","N/A","N/A","Rear BP",null,"N/A","Rear BP",null,null,"2P"]
[26,24,null,null,null,null,8,null,null,4,null,null,"V","N/A\n(Power21 for BP11)","V\n(Non- x8 cable riser for x16 OCP1)","V","V","Rear BP",null,"V","Rear BP",null,null,"1P/2P"]
[27,24,null,null,null,null,8,null,null,8,null,null,"V\n(Non- x8 cable riser for x16 OCP1)","V","Rear BP",null,"V","Rear BP",null,"V","Rear BP",null,null,"1P/2P"]
[121,8,null,null,null,null,null,null,null,null,null,null,"N/A",null,"V\n(Non- x8 cable riser for x16 OCP1)","V","V","V\n(Non- x8 cable riser for CFF)","V","V","N/A",null,null,"1P/2P"]
[]
[]
["The following lists the PCIe slot installation rules for servers with two processors and E3.S front bays. For detailed configurations, see https://dcsc.lenovo.com.  "]
["SR650 V4 E3.S","Front\n(A Zone)"]
["Config","E3.S 1T drive","E3.S 2T CMM",null,null,null,null,null,null,null,null,null,"2P",null,null,null,null,null,null,null,null,null,"BP Qty","CPU Qty's"]
[null,null,null,null,null,null,null,null,null,null,null,null,"Slot1","Slot2","Slot3","Slot4","Slot5","Slot6","Slot7","Slot8","Slot9","Slot10",null,{"$error":"#N/A"}]
[59,8,null,null,null,null,null,null,null,null,null,null,"V",null,"V\n(Non- x8 cable riser for x16 OCP1)","V","V","V","V","V","V",null,{"$f":"B52/4+C52/2","v":2}]
[60,16,null,null,null,null,null,null,null,null,null,null,"N/A",null,"V\n(Non- x8 cable riser for x16 OCP1)","V","V","V","V","V","N/A",null,{"$f":"B53/4+C53/2","v":4}]
[61,24,null,null,null,null,null,null,null,null,null,null,"N/A",null,"V\n(Non- x8 cable riser for x16 OCP1)","N/A","V","V","N/A","V","N/A",null,6,"2P"]
[62,32,null,null,null,null,null,null,null,null,null,null,"N/A",null,"V\n(Only x8 cable riser)\n(Non- x8 cable riser for x16 OCP1)","N/A","N/A","V\n(Only x8 cable riser)","N/A","N/A","N/A",null,8,"2P"]
[63,null,4,null,null,null,null,null,null,null,null,null,"V",null,"V\n(Non- x8 cable riser for x16 OCP1)","V","V","V","V","V","V",null,2]
[64,null,8,null,null,null,null,null,null,null,null,null,"N/A",null,"V\n(Non- x8 cable riser for x16 OCP1)","V","V","V","V","V","N/A",null,4]
[65,null,12,null,null,null,null,null,null,null,null,null,"N/A",null,"V\n(Non- x8 cable riser for x16 OCP1)","N/A","V","V","N/A","V","N/A",null,6,"2P"]
[67,8,4,null,null,null,null,null,null,null,null,null,"N/A",null,"V\n(Non- x8 cable riser for x16 OCP1)","V","V","V","V","V","N/A",null,4,"1P/2P"]
[68,8,8,null,null,null,null,null,null,null,null,null,"N/A",null,"V\n(Non- x8 cable riser for x16 OCP1)","N/A","V","V","N/A","V","N/A",null,6,"2P"]
[69,8,12,null,null,null,null,null,null,null,null,null,"N/A",null,"V\n(Only x8 cable riser)\n(Non- x8 cable riser for x16 OCP1)","N/A","N/A","V\n(Only x8 cable riser)","N/A","N/A","N/A",null,8,"2P"]
[70,16,4,null,null,null,null,null,null,null,null,null,"N/A",null,"V\n(Non- x8 cable riser for x16 OCP1)","N/A","V","V","N/A","V","N/A",null,6,"2P"]
[71,16,8,null,null,null,null,null,null,null,null,null,"N/A",null,"V\n(Only x8 cable riser)\n(Non- x8 cable riser for x16 OCP1)","N/A","N/A","V\n(Only x8 cable riser)","N/A","N/A","N/A",null,8,"2P"]
[72,24,4,null,null,null,null,null,null,null,null,null,"N/A",null,"V\n(Only x8 cable riser)\n(Non- x8 cable riser for x16 OCP1)","N/A","N/A","V\n(Only x8 cable riser)","N/A","N/A","N/A",null,8,"2P"]

{"sheet":"with Compute Complex NeptCore","index":2,"n_rows":23,"n_cols":24,"rows_kept":23,"cut":false,"hidden":false,"merged":[[13,20,13,21],[19,12,19,21],[13,12,13,13],[19,23,20,23],[19,0,20,0],[18,1,18,2],[19,1,20,1],[19,2,20,2],[7,23,8,23],[7,12,8,12],[11,12,11,13],[9,20,9,21],[9,12,9,13],[7,0,8,0],[7,1,8,1],[7,2,8,2],[7,3,8,3],[7,4,8,4],[12,12,12,13],[11,20,11,21],[1,1,1,4],[1,5,1,7],[1,8,1,11],[1,12,1,21],[7,8,8,8],[7,5,8,5],[7,6,8,6],[7,7,8,7],[7,9,8,9],[7,10,8,10],[7,11,8,11],[0,0,0,21],[17,0,17,22],[19,22,20,22],[5,20,5,21],[5,12,5,13],[4,12,4,13],[4,20,4,21],[7,19,8,19],[7,20,8,20],[7,21,8,21],[7,13,8,13],[7,15,8,15],[7,16,8,16],[7,17,8,17],[7,18,8,18],[12,20,12,21]]}
["The following lists  the PCIe slot installation rules for servers with two processors, 24 x 2.5\" front drive bays, and Compute Complex Neptune Core Module. For detailed configurations, see https://dcsc.lenovo.com."]
["SR650 V4 24 x 2.5\"","Hot Swap - Front\n(A Zone)",null,null,null,"Simple Swap - Mid\n(B Zone)",null,null,"Hot Swap - Rear\n(C Zone)",null,null,null,"2P"]
["Config","2.5\" SAS/SATA","2.5\" NVMe","2.5\" AnyBay","U.3","3.5\" SAS/SATA","2.5\" SAS/SATA","2.5\" NVMe","3.5\" SAS/SATA","2.5\" SAS/SATA","2.5\" NVMe","2.5\" AnyBay","Slot1","Slot2","Slot3","Slot4","Slot5","Slot6","Slot7","Slot8","Slot9","Slot10",null,"CPU Qty's"]
[103,8,null,null,null,null,null,null,null,null,null,null,"V","N/A","V\n(Non- x8 cable riser for x16 OCP1)","V","V","V","V","V","V\n(N/A for CFF)","N/A",null,"2P"]
[87,null,8,null,null,null,null,null,null,null,null,null,"N/A",null,"V\n(Non- x8 cable riser for x16 OCP1)","V","V","V","N/A","V","N/A",null,null,"2P"]
[88,null,null,8,null,null,null,null,null,null,null,null,"N/A",null,"V\n(Non- x8 cable riser for x16 OCP1)","V","V","V\n(N/A for CFF)","N/A","V","N/A",null,null,"2P"]
[104,null,null,null,8,null,null,null,null,null,null,null,"V","N/A","V\n(Non- x8 cable riser for x16 OCP1)","V","V","V","V","V","V\n(N/A for CFF)","N/A",null,"2P"]
[105,16,null,null,null,null,null,null,null,null,null,null,"V","N/A","V\n(Non- x8 cable riser for x16 OCP1)","V","V","V","V","V","V\n(N/A for CFF)","N/A",null,"2P"]
[null,null,null,null,null,null,null,null,null,null,null,null,null,null,"V\n(Non- x8 cable riser for x16 OCP1)"]
[89,null,16,null,null,null,null,null,null,null,null,null,"N/A",null,"V\n(Non- x8 cable riser for x16 OCP1)","N/A","V","V","N/A","N/A","N/A",null,null,"2P"]
[106,null,null,null,16,null,null,null,null,null,null,null,"V","N/A","V\n(Non- x8 cable riser for x16 OCP1)","V","V","V","V","V","V\n(N/A for CFF)","N/A",null,"2P"]
[90,null,8,8,null,null,null,null,null,null,null,null,"N/A",null,"V\n(Non- x8 cable riser for x16 OCP1)","N/A","V","V\n(N/A for CFF)","N/A","N/A","N/A",null,null,"2P"]
[91,8,null,8,null,null,null,null,null,null,null,null,"N/A",null,"V\n(Non- x8 cable riser for x16 OCP1)","N/A","V","V\n(N/A for CFF)","V","V","N/A",null,null,"2P"]
[92,8,8,null,null,null,null,null,null,null,null,null,"N/A",null,"V\n(Non- x8 cable riser for x16 OCP1)","N/A","V","V\n(N/A for CFF)","V","V","N/A",null,null,"2P"]
[]
[]
[]
["The following lists  the PCIe slot installation rules for servers with two processors, E3.S front bays, and Compute Complex Neptune Core Module. For detailed configurations, see https://dcsc.lenovo.com."]
["SR650 V4 E3.S","Front\n(A Zone)"]
["Config","E3.S 1T drive","E3.S 2T CMM",null,null,null,null,null,null,null,null,null,"2P",null,null,null,null,null,null,null,null,null,"BP Qty","CPU Qty's"]
[null,null,null,null,null,null,null,null,null,null,null,null,"Slot1","Slot2","Slot3","Slot4","Slot5","Slot6","Slot7","Slot8","Slot9","Slot10",null,{"$error":"#N/A"}]
[97,8,null,null,null,null,null,null,null,null,null,null,"V","N/A","V\n(Non- x8 cable riser for x16 OCP1)","N/A","V","V","N/A","V","V","N/A",{"$f":"B22/4+C22/2","v":2},"2P"]
[98,16,null,null,null,null,null,null,null,null,null,null,"V","N/A","V\n(Non- x8 cable riser for x16 OCP1)","N/A","N/A","V","N/A","N/A","V","N/A",{"$f":"B23/4+C23/2","v":4},"2P"]